bitfinex/quotes_ETHUSD_20230118
["timestamp","ask_amount","ask_price","bid_price","bid_amount"]
[1674080524581,0.0516719,1523.0,1522.9,33.57480489]
[1674080524808,0.0516719,1523.0,1522.9,38.56367555]
[1674080527184,0.0516719,1523.0,1522.9,42.50967555]
[1674080528781,1.9e-06,1523.0,1522.9,47.43369053]
[1674080528968,1.9e-06,1523.0,1522.9,48.32812051]
[1674080529182,0.04638948,1523.1,1522.9,48.32812051]
[1674080529411,0.04638948,1523.1,1523.0,51.08168759]
[1674080529589,0.04638948,1523.1,1523.0,51.14569759]
[1674080529801,0.04638948,1523.1,1523.0,51.51951489]
[1674080530127,0.04638948,1523.1,1523.0,52.41394487]
[1674080530549,0.04638948,1523.1,1523.0,57.63943872]
[1674080530999,0.04638948,1523.1,1523.0,67.05573872]
[1674080531533,0.07148865,1523.2,1523.0,67.75845462]
[1674080531863,0.07148865,1523.2,1523.1,38.28181257]
[1674080532050,0.07148865,1523.2,1523.1,41.83832257]
[1674080532273,8.65e-06,1523.2,1523.1,43.14823652]
[1674080532458,0.04933083,1523.5,1523.1,43.14823652]
[1674080532459,0.07661467,1523.8,1523.7,6.916]
[1674080532632,0.07661467,1523.8,1523.7,10.96335759]
[1674080533013,0.07661467,1523.8,1523.7,24.08929759]
[1674080533366,0.07661467,1523.8,1523.7,10.96335759]
[1674080533628,0.07661467,1523.8,1523.7,10.50175759]
[1674080536197,0.07661467,1523.8,1523.7,3.35575759]
[1674080536471,0.07661467,1523.8,1523.7,10.20774759]
[1674080536785,0.07661467,1523.8,1523.7,10.27175759]
[1674080537320,0.07661467,1523.8,1523.7,16.83472759]
[1674080537469,0.07661467,1523.8,1523.7,19.53553236]
[1674080538096,0.07661467,1523.8,1523.7,17.06472759]
[1674080538356,0.07661467,1523.8,1523.7,10.27175759]
[1674080538519,0.07661467,1523.8,1523.7,16.83472759]
[1674080538724,0.07661467,1523.8,1523.7,10.27175759]
[1674080539793,0.07661467,1523.8,1523.7,10.50175759]
[1674080541456,0.07661467,1523.8,1523.7,19.42755635]
[1674080544522,0.07661467,1523.8,1523.7,25.99052635]
[1674080545572,0.07661467,1523.8,1523.7,32.55349635]
[1674080546220,0.07661467,1523.8,1523.7,45.62829635]
[1674080547529,0.07661467,1523.9,1523.8,0.35338533]
[1674080547833,0.07661467,1523.9,1523.8,35.07692109]
[1674080548152,0.07661467,1523.9,1523.8,35.14093109]
[1674080549149,5.22837539,1524.3,1523.8,34.78754576]
[1674080549361,5.22837539,1524.3,1524.1,10.20774759]
[1674080549609,5.22837539,1524.3,1524.2,3.29174759]
[1674080549920,5.22837539,1524.3,1524.2,2.36774596]
[1674080550354,2.22837539,1524.3,1524.2,2.36774596]
[1674080550556,1.48253807,1524.3,1524.2,2.36774596]
[1674080550942,2.16237539,1524.3,1524.2,2.36774596]
[1674080551788,2.16237539,1524.3,1524.2,3.30252156]
[1674080552573,1.48253807,1524.3,1524.2,10.21852156]
[1674080552880,0.99043807,1524.3,1524.2,16.84334156]
[1674080555299,0.99043807,1524.3,1524.2,23.63415156]
[1674080559382,0.99043807,1524.3,1524.2,30.19496156]
[1674080561086,0.99043807,1524.3,1524.2,3.36653156]
[1674080561232,0.99043807,1524.3,1524.2,29.90095156]
[1674080561606,0.99043807,1524.3,1524.2,29.96496156]
[1674080562509,0.99043807,1524.3,1524.2,30.19496156]
[1674080565020,0.99043807,1524.3,1524.2,23.63415156]
[1674080565021,1.67027539,1524.3,1524.2,23.63415156]
[1674080565267,0.99043807,1524.3,1524.2,6.98001]
[1674080565440,1.67027539,1524.3,1524.2,0.06401]
[1674080565650,0.99043807,1524.3,1524.2,3.29174759]
[1674080565912,0.99043807,1524.3,1524.2,9.85255759]
[1674080566241,0.99043807,1524.3,1524.2,9.91656759]
[1674080566394,1.67027539,1524.3,1524.2,29.95418759]
[1674080566592,0.99043807,1524.3,1524.2,29.95418759]
[1674080566801,0.99043807,1524.3,1524.2,33.60569235]
[1674080567274,0.99043807,1524.3,1524.2,47.60569235]
[1674080567646,0.99043807,1524.3,1524.2,47.83569235]
[1674080568000,0.99043807,1524.3,1524.2,48.21758057]
[1674080569582,0.99043807,1524.3,1524.2,47.83569235]
[1674080570163,0.7130095,1524.5,1524.4,10.20774759]
[1674080570374,0.7130095,1524.5,1524.4,31.20238235]
[1674080573163,0.7130095,1524.5,1524.4,31.20038235]
[1674080573483,0.03317218,1524.5,1524.4,31.20238235]
[1674080584369,0.03317218,1524.5,1524.4,41.09855011]
[1674080584576,0.03317218,1524.5,1524.4,41.50013553]
[1674080585682,0.03317218,1524.5,1524.4,41.11152367]
[1674080585859,0.03317218,1524.5,1524.4,36.70735591]
[1674080588262,0.03317218,1524.5,1524.4,37.09596777]
[1674080589304,0.03317218,1524.5,1524.4,36.13699421]
[1674080590770,0.03317218,1524.5,1524.4,40.08299421]
[1674080593095,0.03317218,1524.5,1524.4,33.47735591]
[1674080593710,0.03317218,1524.5,1524.4,32.90699421]
[1674080594749,0.03317218,1524.5,1524.4,32.51838235]
[1674080594930,0.03317218,1524.5,1524.4,16.83170759]
[1674080595144,0.03317218,1524.5,1524.4,23.39165759]
[1674080595501,0.03006256,1524.5,1524.4,23.39165759]
[1674080595712,0.03006256,1524.5,1524.4,16.83170759]
[1674080595983,0.03006256,1524.5,1524.4,10.27175759]
[1674080596178,0.03006256,1524.5,1524.4,3.35575759]
[1674080596393,0.03006256,1524.5,1524.4,3.29174759]
[1674080596660,0.74585328,1524.5,1524.4,3.29174759]
[1674080596914,15.56384786,1524.5,1524.3,0.06401]
[1674080597134,5.0311,1524.4,1524.0,0.06401]
[1674080597457,18.89816143,1524.4,1523.9,0.06401]
[1674080597621,1.546,1524.3,1523.8,6.62642]
[1674080597836,0.4921,1524.2,1523.8,0.06401]
[1674080598161,0.4921,1524.2,1523.9,3.29174759]
[1674080598162,3.553012,1524.2,1523.9,3.29174759]
[1674080598387,3.553012,1524.2,1524.0,3.29174759]
[1674080598592,3.553012,1524.2,1524.1,3.29174759]
[1674080598767,6.553012,1524.2,1524.1,3.29174759]
[1674080598975,13.179822,1524.2,1524.1,3.29174759]
[1674080599384,13.86051343,1524.2,1524.1,3.29174759]
[1674080599598,11.66391,1524.2,1524.1,3.29174759]
[1674080599872,12.34460143,1524.2,1523.9,0.06401]
[1674080600052,12.34460143,1524.2,1523.9,3.29174759]
[1674080600053,1.546,1524.0,1523.9,3.29174759]
[1674080600703,8.59987,1524.0,1523.9,3.29174759]
[1674080600915,8.66587,1524.0,1523.9,3.29174759]
[1674080601645,11.66587,1524.0,1523.9,3.29174759]
[1674080602175,18.22754,1524.0,1523.9,3.29174759]
[1674080606383,24.78921,1524.0,1523.9,3.29174759]
[1674080610296,29.59371001,1524.0,1523.7,0.06401]
[1674080610522,29.59371001,1524.0,1523.7,3.29174759]
[1674080610523,21.23362,1523.8,1523.7,3.29174759]
[1674080610656,24.79192,1523.8,1523.7,3.29174759]
[1674080610866,28.276564,1523.8,1523.6,0.10139638]
[1674080611128,23.18121,1523.7,1523.6,3.39314397]
[1674080611342,24.79321,1523.7,1523.6,3.39314397]
[1674080611497,28.2772494,1523.7,1523.6,3.39314397]
[1674080612869,29.8172494,1523.7,1523.6,0.10139638]
[1674080618602,29.8172494,1523.7,1523.6,0.09768932]
[1674080620695,33.45399113,1523.7,1523.6,0.09768932]
[1674080621342,33.45399113,1523.7,1523.4,0.10865219]
[1674080621553,27.80032,1523.5,1523.4,0.10865219]
[1674080621874,28.35872,1523.5,1523.4,0.10865219]
[1674080622089,31.35872,1523.5,1523.4,0.10865219]
[1674080626124,33.54146173,1523.5,1523.4,0.10865219]
[1674080626339,33.54146173,1523.5,1523.3,0.06909512]
[1674080626340,43.10529173,1523.5,1523.3,0.06909512]
[1674080626545,9.44114617,1523.4,1523.3,0.06909512]
[1674080626821,29.69232617,1523.4,1523.3,0.06909512]
[1674080627130,31.8740679,1523.4,1523.3,0.06909512]
[1674080627301,31.8740679,1523.4,1522.9,0.12766096]
[1674080627532,1.539,1523.0,1522.9,3.41940855]
[1674080627719,24.23694,1523.0,1522.9,3.41940855]
[1674080628077,24.30294,1523.0,1522.9,3.41940855]
[1674080628448,26.97218173,1523.0,1522.8,0.16156512]
[1674080628652,6.26781817,1522.9,1522.8,0.09755512]
[1674080628858,29.03304817,1522.9,1522.8,0.09755512]
[1674080629072,29.6697899,1522.9,1522.8,0.09755512]
[1674080631924,29.6697899,1522.9,1522.8,5.12e-06]
[1674080632135,31.2157899,1522.9,1522.8,5.12e-06]
[1674080632360,31.2157899,1522.9,1522.7,7.62e-06]
[1674080632695,30.45412899,1522.8,1522.7,7.62e-06]
[1674080632873,30.52012899,1522.8,1522.7,7.62e-06]
[1674080633080,31.15687072,1522.8,1522.7,7.62e-06]
[1674080633311,34.94121831,1522.8,1522.1,0.06401]
[1674080633519,34.94121831,1522.8,1522.0,0.06401]
[1674080633520,1.542,1522.2,1522.0,0.06401]
[1674080633743,20.03326117,1522.2,1522.1,3.29174759]
[1674080633932,20.09926117,1522.2,1522.1,3.29174759]
[1674080634349,20.09926117,1522.2,1522.0,0.06401]
[1674080634646,20.04926117,1522.2,1522.0,3.29174759]
[1674080635322,1.542,1522.1,1522.0,3.29174759]
[1674080635506,21.25161,1522.1,1522.0,3.29174759]
[1674080635852,21.31761,1522.1,1522.0,3.29174759]
[1674080636025,21.31761,1522.1,1521.9,0.2055046]
[1674080636235,21.31761,1522.1,1521.9,3.43324219]
[1674080636446,1.545,1522.0,1521.9,0.1414946]
[1674080636659,21.2559,1522.0,1521.9,0.1414946]
[1674080636845,21.3219,1522.0,1521.9,0.1414946]
[1674080639374,21.95864173,1522.0,1521.9,0.1414946]
[1674080639582,24.17475117,1522.0,1521.9,0.1414946]
[1674080640059,25.70775117,1522.0,1521.9,0.1414946]
[1674080640272,29.3444929,1522.0,1521.9,0.1414946]
[1674080641055,27.8114929,1522.0,1521.9,0.1414946]
[1674080647621,27.17475117,1522.0,1521.9,0.1414946]
[1674080657287,27.17475117,1522.0,1521.9,0.13852257]
[1674080660897,21.3219,1522.0,1521.9,0.13852257]
[1674080661087,19.7769,1522.0,1521.9,0.13852257]
[1674080662241,6.6363,1522.0,1521.9,3.43027016]
[1674080663869,0.066,1522.0,1521.9,3.43027016]
[1674080664067,6.56929,1522.3,1522.0,1.15119534]
[1674080664068,6.63529,1522.3,1522.0,1.15119534]
[1674080664295,13.20459,1522.3,1522.0,16.56164293]
[1674080664428,19.77389,1522.3,1522.0,16.62565293]
[1674080664639,19.77389,1522.3,1522.1,1.66256529]
[1674080666556,19.77389,1522.3,1522.0,16.62565293]
[1674080666557,13.13974,1522.1,1522.0,16.62565293]
[1674080666755,13.20574,1522.1,1522.0,16.62565293]
[1674080667529,13.20574,1522.1,1522.0,16.62365293]
[1674080667745,13.20574,1522.1,1522.0,16.62565293]
[1674080668052,13.20574,1522.1,1522.0,13.33390534]
[1674080668473,19.77561,1522.1,1522.0,13.33390534]
[1674080668876,22.77561,1522.1,1522.0,13.33390534]
[1674080671207,22.77561,1522.1,1522.0,14.68114813]
[1674080673675,16.20574,1522.1,1522.0,14.68114813]
[1674080674574,3.066,1522.1,1522.0,17.97289572]
[1674080674737,13.20508,1522.2,1522.0,17.97289572]
[1674080674945,13.20508,1522.2,1522.1,1.79728957]
[1674080675186,16.20508,1522.2,1522.1,1.79728957]
[1674080681586,0.066,1522.2,1522.1,5.08903716]
[1674080681769,0.066,1522.3,1522.1,5.15304716]
[1674080682065,13.20342,1522.4,1522.2,3.80705231]
[1674080686315,0.066,1522.4,1522.2,3.80705231]
[1674080686553,9.56857,1522.4,1522.2,3.80705231]
[1674080686740,16.20316,1522.4,1522.2,3.80705231]
[1674080687803,16.20316,1522.4,1522.2,3.80325902]
[1674080689149,0.066,1522.4,1522.3,3.67207349]
[1674080689466,13.20297,1522.5,1522.3,3.67207349]
[1674080690250,6.63444,1522.5,1522.3,3.67207349]
[1674080694245,0.066,1522.5,1522.3,3.67207349]
[1674080694581,16.20196,1522.6,1522.3,3.67207349]
[1674080694765,16.20196,1522.6,1522.3,16.62767349]
[1674080694981,16.20196,1522.6,1522.3,16.69168349]
[1674080697507,9.63397,1522.6,1522.3,16.69168349]
[1674080699658,10.12667,1522.6,1522.3,16.69168349]
[1674080699974,9.63397,1522.6,1522.3,16.69168349]
[1674080703909,16.19918326,1522.6,1522.3,16.69168349]
[1674080704120,22.76715326,1522.6,1522.3,13.01961]
[1674080704371,23.44784469,1522.6,1522.3,13.01961]
[1674080704599,0.4927,1522.5,1522.3,13.01961]
[1674080704764,13.62941,1522.5,1522.3,13.01961]
[1674080704962,13.69541,1522.5,1522.3,13.01961]
[1674080705328,3.0,1522.4,1522.3,13.01961]
[1674080714524,0.066,1522.5,1522.3,17.61331859]
[1674080714825,6.63378,1522.6,1522.3,17.61331859]
[1674080717345,6.63378,1522.6,1522.3,24.18231859]
[1674080719372,0.066,1522.6,1522.3,24.18231859]
[1674080719707,3.066,1522.7,1522.4,3.29174759]
[1674080719933,20.52275233,1522.8,1522.5,3.62092235]
[1674080720216,13.95557233,1522.8,1522.5,3.29174759]
[1674080724270,13.2748809,1522.8,1522.5,3.29174759]
[1674080724844,13.95557233,1522.8,1522.5,3.29174759]
[1674080725453,20.52266233,1522.8,1522.5,3.29174759]
[1674080725672,17.91861711,1522.8,1522.5,3.29174759]
[1674080725844,17.23792568,1522.8,1522.5,3.29174759]
[1674080726215,3.0,1522.7,1522.5,3.29174759]
[1674080727352,3.0,1522.7,1522.5,3.28885113]
[1674080730024,3.0,1522.7,1522.5,3.18885113]
[1674080730843,9.56732,1522.7,1522.5,3.18885113]
[1674080731017,12.76821239,1522.7,1522.5,3.18885113]
[1674080733273,12.76821239,1522.7,1522.6,0.30705879]
[1674080734182,12.08752096,1522.7,1522.6,0.30705879]
[1674080735219,26.87797995,1522.7,1522.6,0.30705879]
[1674080735453,26.73383822,1522.7,1522.6,0.30705879]
[1674080737574,27.07487366,1522.7,1522.6,0.30705879]
[1674080737788,28.09591365,1522.7,1522.6,0.30705879]
[1674080737954,28.9615664,1522.7,1522.6,0.30705879]
[1674080738168,27.26072096,1522.7,1522.6,0.30705879]
[1674080739941,28.96172407,1522.7,1522.6,0.30705879]
[1674080745259,30.3226195,1522.7,1522.6,0.30705879]
[1674080745609,30.3226195,1522.7,1522.6,0.22007703]
[1674080745610,32.73521028,1522.7,1522.6,0.22007703]
[1674080745828,32.73521028,1522.7,1522.0,22.63671]
[1674080745829,0.12524897,1522.5,1522.0,22.63671]
[1674080746074,0.67999658,1522.3,1522.0,22.63671]
[1674080746403,19.70829,1522.2,1522.0,22.63671]
[1674080746625,22.11311866,1522.2,1522.0,22.63671]
[1674080746776,22.11311866,1522.2,1522.0,13.06801]
[1674080748043,22.11311866,1522.2,1522.0,0.06401]
[1674080748372,22.11311866,1522.2,1521.9,0.13852257]
[1674080748572,6.5703,1522.0,1521.9,0.13852257]
[1674080748779,6.6363,1522.0,1521.9,0.13852257]
[1674080749626,9.6363,1522.0,1521.9,0.13852257]
[1674080749816,11.913935,1522.0,1521.9,0.13852257]
[1674080750492,3.066,1522.0,1521.9,0.13852257]
[1674080750794,3.0,1522.0,1521.9,0.13852257]
[1674080752002,9.5703,1522.0,1521.9,0.13852257]
[1674080752179,9.6363,1522.0,1521.9,0.13852257]
[1674080753817,16.2066,1522.0,1521.9,0.13852257]
[1674080754021,18.48425,1522.0,1521.9,0.13852257]
[1674080755126,3.066,1522.0,1521.9,0.13852257]
[1674080755437,3.0,1522.0,1521.9,0.13852257]
[1674080756345,0.066,1522.1,1521.9,3.43027016]
[1674080756578,0.066,1522.2,1522.0,0.34302702]
[1674080756793,0.066,1522.2,1521.9,10.00100016]
[1674080756794,6.56944,1522.2,1521.9,3.49428016]
[1674080757120,6.63544,1522.2,1521.9,3.43027016]
[1674080759643,6.63544,1522.2,1521.9,10.00091016]
[1674080759855,6.63544,1522.2,1521.9,10.06492016]
[1674080760590,6.63544,1522.2,1521.9,3.49428016]
[1674080760797,6.63544,1522.2,1521.9,3.43027016]
[1674080762256,6.63544,1522.2,1521.9,7.04402318]
[1674080762585,6.63544,1522.2,1521.9,7.10803318]
[1674080765192,3.0,1522.1,1521.9,0.20253257]
[1674080765372,3.0,1522.1,1521.9,0.13852257]
[1674080765583,6.5703,1522.0,1521.9,0.13852257]
[1674080765827,9.6363,1522.0,1521.9,0.13852257]
[1674080768836,11.913943,1522.0,1521.9,0.13852257]
[1674080769093,9.6363,1522.0,1521.9,0.13852257]
[1674080769290,3.066,1522.0,1521.9,0.13852257]
[1674080769502,3.0,1522.0,1521.9,0.13852257]
[1674080771623,10.0632,1522.0,1521.9,0.13852257]
[1674080771933,10.1292,1522.0,1521.9,0.13852257]
[1674080772648,10.1292,1522.0,1521.9,0.13619239]
[1674080773259,25.596733,1522.0,1521.9,0.13619239]
[1674080775067,19.026433,1522.0,1521.9,0.13619239]
[1674080777084,9.6363,1522.0,1521.9,0.13619239]
[1674080778133,3.066,1522.0,1521.9,0.13619239]
[1674080778310,3.0,1522.0,1521.9,0.13619239]
[1674080779921,3.67999658,1522.0,1521.9,0.13619239]
[1674080782845,3.0,1522.0,1521.9,0.13619239]
[1674080783967,3.67999658,1522.0,1521.9,0.13619239]
[1674080784223,0.67999658,1522.0,1521.9,0.13619239]
[1674080785903,21.96943145,1522.1,1521.9,0.13619239]
[1674080786117,25.31176425,1522.1,1521.9,0.13619239]
[1674080787579,0.67999658,1522.0,1521.9,0.13619239]
[1674080790532,13.82059658,1522.0,1521.9,0.13619239]
[1674080790753,13.88659658,1522.0,1521.9,0.13619239]
[1674080793753,7.31629658,1522.0,1521.9,0.13301175]
[1674080799136,13.88659658,1522.0,1521.9,0.13301175]
[1674080799468,7.31629658,1522.0,1521.9,0.13301175]
[1674080799783,0.066,1522.0,1521.9,4.73750151]
[1674080799941,0.67999658,1522.1,1521.9,4.73750151]
[1674080805293,0.67999658,1522.1,1521.9,3.42475934]
[1674080806090,0.67999658,1522.1,1521.9,9.99541934]
[1674080806439,0.67999658,1522.1,1521.9,10.05942934]
[1674080810248,0.68199658,1522.1,1521.9,10.05742934]
[1674080810405,0.67999658,1522.1,1521.9,14.74190627]
[1674080811395,0.67999658,1522.1,1521.9,16.28790627]
[1674080811577,1.69999145,1522.2,1521.9,29.42936627]
[1674080811790,1.69999145,1522.2,1522.0,9.51302663]
[1674080812031,1.69999145,1522.2,1522.1,3.29174759]
[1674080812206,1.69999145,1522.2,1522.1,16.43148759]
[1674080812416,0.67999658,1522.2,1522.1,16.49549759]
[1674080812630,0.67999658,1522.2,1522.1,23.06536759]
[1674080813591,0.67698873,1522.2,1522.1,23.06536759]
[1674080813819,0.67698873,1522.2,1522.1,25.37190435]
[1674080815398,5.44598803,1522.4,1522.1,25.37190435]
[1674080815611,5.44598803,1522.4,1522.1,38.16030435]
[1674080815766,1.08599487,1522.4,1522.2,3.29174759]
[1674080816143,1.01999487,1522.4,1522.3,13.088]
[1674080816287,1.01999487,1522.4,1522.3,15.44689576]
[1674080817247,2.37998803,1522.5,1522.3,15.44689576]
[1674080817567,1.01999487,1522.5,1522.3,15.44689576]
[1674080820607,1.01999487,1522.5,1522.4,16.42888759]
[1674080820859,2.37998803,1522.6,1522.4,19.02357592]
[1674080821281,1.01999487,1522.6,1522.4,19.02357592]
[1674080821913,1.01999487,1522.6,1522.5,16.42802759]
[1674080822067,1.01999487,1522.6,1522.5,16.49203759]
[1674080822279,1.01999487,1522.6,1522.5,25.61930618]
[1674080822759,1.01999487,1522.7,1522.5,25.84930618]
[1674080822908,1.09469577,1522.8,1522.7,19.70184]
[1674080823118,1.09469577,1522.8,1522.7,25.35695635]
[1674080823539,1.7747498,1522.8,1522.7,25.35695635]
[1674080824022,0.75475493,1522.8,1522.7,25.35695635]
[1674080824389,0.0747009,1522.8,1522.7,25.35695635]
[1674080824923,0.0747009,1522.8,1522.7,30.35695635]
[1674080825719,0.0747009,1522.8,1522.7,35.47389813]
[1674080826252,5.91e-05,1522.9,1522.7,47.88189813]
[1674080826418,0.07218047,1523.0,1522.8,25.20427918]
[1674080826769,0.07218047,1523.0,1522.9,30.85438759]
[1674080826982,0.07218047,1523.0,1522.9,36.60973937]
[1674080827136,0.07218047,1523.0,1522.9,36.83973937]
[1674080827346,0.0747009,1523.1,1522.9,41.39512096]
[1674080827570,0.07218047,1523.2,1523.1,33.1782]
[1674080827787,0.07218047,1523.2,1523.1,42.44229937]
[1674080827989,0.07218047,1523.2,1523.1,38.04795759]
[1674080828423,0.07218047,1523.2,1523.1,42.44229937]
[1674080828635,0.07218047,1523.2,1523.1,45.00142796]
[1674080829055,0.07218047,1523.2,1523.1,57.82632796]
[1674080829870,0.07218047,1523.2,1523.1,59.61582796]
[1674080830081,0.07218047,1523.2,1523.1,59.12332796]
[1674080830819,0.07218047,1523.2,1523.1,64.12332796]
[1674080831271,0.07218047,1523.2,1523.1,67.12332796]
[1674080831811,0.07472169,1523.3,1523.1,81.61582796]
[1674080832028,0.07472169,1523.3,1523.2,24.50494813]
[1674080832243,0.07472169,1523.3,1523.2,44.26431813]
[1674080832944,0.07472169,1523.3,1523.2,58.98291813]
[1674080833380,0.07472169,1523.4,1523.2,58.98291813]
[1674080833564,0.07472169,1523.4,1523.3,32.48581759]
[1674080833778,0.07472169,1523.4,1523.3,44.96235918]
[1674080834007,0.07472169,1523.4,1523.3,40.5680174]
[1674080834633,1.69e-06,1523.4,1523.3,40.5680174]
[1674080834839,0.08266767,1523.5,1523.3,44.96235918]
[1674080835079,0.08266767,1523.5,1523.4,25.79652759]
[1674080835295,0.08266767,1523.5,1523.4,30.41591918]
[1674080835938,0.08266767,1523.5,1523.4,35.41591918]
[1674080836459,0.08266767,1523.5,1523.4,39.71191918]
[1674080836618,0.08266767,1523.5,1523.4,40.20431918]
[1674080837190,7.67e-06,1523.5,1523.4,47.12031918]
[1674080837360,0.08266767,1523.6,1523.4,46.62791918]
[1674080837577,0.08266767,1523.6,1523.5,21.22397618]
[1674080837884,0.08266767,1523.6,1523.5,41.20947618]
[1674080838093,0.08266767,1523.6,1523.5,50.76227618]
[1674080838959,0.08266767,1523.6,1523.5,68.25467618]
[1674080839173,0.08266767,1523.6,1523.5,67.76227618]
[1674080839820,0.08266767,1523.6,1523.5,66.72527618]
[1674080840532,0.08266767,1523.6,1523.5,73.64127618]
[1674080840755,7.67e-06,1523.6,1523.5,81.73710618]
[1674080840937,0.07827589,1524.0,1523.5,86.73710618]
[1674080841147,0.07827589,1524.0,1523.8,4.83874759]
[1674080841407,0.07827589,1524.0,1523.9,22.97807759]
[1674080841606,0.07827589,1524.0,1523.9,23.04208759]
[1674080841791,0.07827589,1524.0,1523.9,23.27208759]
[1674080842006,0.07827589,1524.0,1523.9,28.27208759]
[1674080842215,0.07827589,1524.0,1523.9,31.91022735]
[1674080843281,0.07827589,1524.0,1523.9,46.19102735]
[1674080860324,0.07827589,1524.0,1523.9,44.64402735]
[1674080861115,0.10181927,1524.1,1524.0,0.02014911]
[1674080861431,0.10181927,1524.1,1524.0,27.69332435]
[1674080861637,0.10181927,1524.1,1524.0,27.75733435]
[1674080861851,0.10181927,1524.1,1524.0,32.75733435]
[1674080864376,0.3387,1524.4,1524.0,32.75733435]
[1674080864731,0.3387,1524.5,1524.2,6.56075]
[1674080864907,0.3387,1524.5,1524.3,8.29174759]
[1674080865119,6.89827,1524.5,1524.3,8.35575759]
[1674080865329,10.08481771,1524.5,1524.3,5.06401]
[1674080865971,10.08481771,1524.5,1524.4,5.0]
[1674080866160,10.08481771,1524.5,1524.4,5.06401]
[1674080866529,14.88383316,1524.5,1524.4,3.8659144]
[1674080866693,14.88383316,1524.5,1524.4,3.8019044]
[1674080868600,16.5846467,1524.5,1524.4,3.8019044]
[1674080868811,15.22383145,1524.5,1524.4,3.8019044]
[1674080869000,16.58463917,1524.5,1524.4,5.0]
[1674080869212,17.53821237,1524.5,1524.4,5.06401]
[1674080870507,15.83822092,1524.5,1524.4,5.06401]
[1674080870844,25.63440018,1524.5,1524.4,0.066]
[1674080871151,30.51580855,1524.5,1523.8,0.066]
[1674080871314,1.547,1524.2,1523.9,3.29174759]
[1674080871519,2.0391,1524.2,1524.0,3.29174759]
[1674080871756,11.59999,1524.2,1523.9,0.066]
[1674080871998,11.59999,1524.2,1523.8,0.066]
[1674080871999,1.547,1524.1,1523.8,0.066]
[1674080872148,6.56167,1524.0,1523.8,3.29174759]
[1674080872362,0.4922,1523.9,1523.7,0.066]
[1674080872568,7.05445,1523.9,1523.7,3.29174759]
[1674080872804,7.12045,1523.9,1523.7,3.29174759]
[1674080873308,0.5582,1523.9,1523.8,3.29174759]
[1674080873517,0.4922,1523.9,1523.8,3.29174759]
[1674080874520,1.17347374,1523.9,1523.8,3.29174759]
[1674080874832,2.19567011,1523.9,1523.7,0.066]
[1674080875044,0.68154223,1523.8,1523.7,3.29174759]
[1674080875581,0.66140023,1523.8,1523.7,3.29174759]
[1674080877092,1.68332811,1523.8,1523.7,3.29174759]
[1674080877296,0.66140023,1523.8,1523.7,3.29174759]
[1674080877512,1.68332811,1523.8,1523.7,3.29174759]
[1674080878564,1.02192788,1523.8,1523.7,3.29174759]
[1674080879160,1.51412788,1523.9,1523.7,12.1681692]
[1674080879376,1.51412788,1523.9,1523.8,3.29174759]
[1674080879784,1.02192788,1523.9,1523.8,3.29174759]
[1674080879994,5.44992421,1524.0,1523.8,3.29174759]
[1674080880236,4.08792788,1524.0,1523.8,3.29174759]
[1674080880449,4.02192788,1524.0,1523.8,3.29174759]
[1674080880639,5.38392421,1524.0,1523.8,3.29174759]
[1674080880817,5.44992421,1524.0,1523.8,3.29174759]
[1674080881242,1.08792788,1524.0,1523.9,3.29174759]
[1674080881516,1.02192788,1524.1,1523.9,22.97807759]
[1674080881665,1.02192788,1524.1,1524.0,12.15122535]
[1674080881875,1.02192788,1524.1,1524.0,12.21722535]
[1674080882519,2.38392421,1524.2,1524.0,18.77889535]
[1674080882760,1.02192788,1524.2,1524.1,9.85298759]
[1674080882989,1.02192788,1524.2,1524.1,9.91898759]
[1674080883189,1.02192788,1524.2,1524.1,12.45300113]
[1674080884343,1.02192788,1524.2,1524.1,19.01424113]
[1674080884566,1.02192788,1524.2,1524.1,5.89176113]
[1674080884734,1.02192788,1524.2,1524.1,3.35774759]
[1674080885077,1.02192788,1524.2,1524.0,6.62746]
[1674080885232,1.02192788,1524.2,1524.0,9.91920759]
[1674080885447,0.68142194,1524.1,1524.0,9.91920759]
[1674080885658,0.68142194,1524.1,1524.0,13.45110035]
[1674080887031,0.68142194,1524.1,1524.0,26.57444035]
[1674080887299,1.70334982,1524.2,1524.0,26.57444035]
[1674080887603,1.70334982,1524.2,1524.1,9.85298759]
[1674080887808,1.70334982,1524.2,1524.1,9.91898759]
[1674080888043,1.70334982,1524.2,1524.1,16.48022759]
[1674080888180,0.68142194,1524.2,1524.1,19.13762863]
[1674080888391,1.70334982,1524.2,1524.1,19.13762863]
[1674080888600,0.68142194,1524.2,1524.1,19.13762863]
[1674080888870,0.68142194,1524.2,1524.1,3.35774759]
[1674080889027,1.02192788,1524.2,1524.1,3.29174759]
[1674080889238,1.70316754,1524.2,1524.1,3.29174759]
[1674080889862,1.02192788,1524.2,1524.1,3.29174759]
[1674080890095,1.70317881,1524.2,1524.1,3.29174759]
[1674080890284,0.68125093,1524.3,1524.1,24.62353635]
[1674080890659,0.68125093,1524.3,1524.2,22.97417759]
[1674080890806,0.68125093,1524.3,1524.2,23.04017759]
[1674080892707,0.68125093,1524.3,1524.2,3.35774759]
[1674080892954,0.68125093,1524.3,1524.2,3.29174759]
[1674080893166,1.70317881,1524.3,1524.2,3.29174759]
[1674080893328,0.68125093,1524.3,1524.2,9.85255759]
[1674080893649,1.70317881,1524.3,1524.2,12.22261935]
[1674080893852,0.68125093,1524.4,1524.2,25.57423935]
[1674080894256,0.68125093,1524.4,1524.3,23.20288759]
[1674080894400,0.68125093,1524.4,1524.3,9.91812759]
[1674080894802,0.68125093,1524.4,1524.3,3.35774759]
[1674080895012,0.68125093,1524.4,1524.3,3.29174759]
[1674080895261,1.70317881,1524.4,1524.3,3.29174759]
[1674080895482,0.68125093,1524.4,1524.3,3.29174759]
[1674080895688,1.70317881,1524.4,1524.3,3.29174759]
[1674080895898,0.68125093,1524.4,1524.3,3.29174759]
[1674080896221,1.70317881,1524.4,1524.3,3.29174759]
[1674080896437,0.68066322,1524.4,1524.3,3.29174759]
[1674080896750,1.7025911,1524.4,1524.3,3.29174759]
[1674080896971,1.02192788,1524.4,1524.3,3.29174759]
[1674080897534,1.70259326,1524.4,1524.3,3.29174759]
[1674080898007,0.68066538,1524.4,1524.3,3.29174759]
[1674080898239,1.70259326,1524.4,1524.3,3.29174759]
[1674080899359,1.70249832,1524.4,1524.3,3.29174759]
[1674080899549,1.02192788,1524.4,1524.3,3.29174759]
[1674080899759,1.7024991,1524.4,1524.3,3.29174759]
[1674080900088,1.70249897,1524.4,1524.3,3.29174759]
[1674080900407,1.02192788,1524.4,1524.3,3.29174759]
[1674080900614,1.9228753,1524.4,1524.2,0.066]
[1674080900808,0.68042475,1524.3,1524.1,0.066]
[1674080901021,0.68042475,1524.3,1524.0,6.62745]
[1674080901276,8.26286263,1524.3,1524.0,3.35774759]
[1674080901593,0.68042475,1524.2,1524.0,3.29174759]